fUSD/lending_fUSD_20240913
["ID","MTS","AMOUNT","RATE_DAILY","PERIOD"]
[338032921,1726245484515,154.44,0.00012162,2]
[338032922,1726245484937,154.44,0.00012192,2]
[338032923,1726245484977,154.44,0.00012222,2]
[338032924,1726245485254,150.0,0.00012162,2]
[338032925,1726245632805,240.13,0.00012138,2]
[338032926,1726245635889,200.0,0.00012138,2]
[338032927,1726245811247,167.0,0.0001245,2]
[338032928,1726245852407,250.0,0.0001211,2]
[338032929,1726245913495,150.0,0.00011688,2]
[338032930,1726245916985,421.58264546,0.00012624,2]
[338032931,1726245965903,250.0,0.0001211,2]
[338032932,1726246000297,818.54,0.0001017,2]
[338032933,1726246000553,818.54,0.00012434,2]
[338032934,1726246022141,156.85,0.00012066,2]
[338032935,1726246147822,1050.0,0.00011,2]
[338032944,1726246231737,-255.25,0.00012695,2]
[338032945,1726246231747,-835.57,0.00012696,2]
[338032946,1726246231757,-266.21628517,0.000127,2]
[338032947,1726246231848,-59.03267634,0.000127,2]
[338032948,1726246231858,-150.0,0.00012739,2]
[338032949,1726246231867,-150.0,0.00012775,2]
[338032950,1726246231876,-150.0,0.00012822,2]
[338032951,1726246231885,-150.0,0.00012849,2]
[338032952,1726246231895,-2138.31575,0.0001287,2]
[338032953,1726246231904,-150.0,0.00012873,2]
[338032954,1726246231913,-150.0,0.00012877,2]
[338032955,1726246231922,-2299.85,0.00012877,2]
[338032956,1726246231932,-150.0,0.00012885,2]
[338032957,1726246231941,-499.99,0.00012885,2]
[338032958,1726246231950,-3659.22,0.00012885,2]
[338032959,1726246231961,-1900.65,0.00012885,2]
[338032960,1726246231971,-10675.28169532,0.0001289,2]
[338032961,1726246231980,-150.0,0.00012899,2]
[338032962,1726246231989,-7732.791,0.000129,2]
[338032963,1726246231998,-752.7456,0.000129,2]
[338032964,1726246232007,-593.184,0.000129,2]
[338032965,1726246232016,-27744.5,0.000129,2]
[338032966,1726246232026,-155.85325521,0.000129,2]
[338032967,1726246232035,-840.773,0.000129,2]
[338032968,1726246232044,-197.57,0.000129,2]
[338032969,1726246232054,-224.47477815,0.000129,2]
[338032970,1726246232063,-390.09328388,0.000129,2]
[338032971,1726246232072,-172.529219,0.000129,2]
[338032972,1726246232081,-518.39221935,0.000129,2]
[338032973,1726246232093,-10353.81375399,0.000129,2]
[338032974,1726246232102,-378.80419772,0.000129,2]
[338032975,1726246232110,-500.0,0.00012973,2]
[338032976,1726246232119,-500.0,0.00012973,2]
[338032977,1726246232128,-500.0,0.00012973,2]
[338032978,1726246232137,-150.24,0.0001299,2]
[338032979,1726246232147,-500.0,0.00012999,2]
[338032980,1726246232156,-500.0,0.00012999,2]
[338032981,1726246232165,-500.0,0.00012999,2]
[338032982,1726246232175,-500.0,0.00012999,2]
[338032983,1726246232184,-604.05462556,0.00012999,2]
[338032984,1726246232194,-282.02587164,0.00012999,2]
[338032985,1726246232204,-908.0,0.00013,2]
[338032986,1726246232213,-246987.21891545,0.00013,2]
[338032987,1726246232222,-144612.72698456,0.00013,2]
[338032988,1726246232234,-2850.97289394,0.00013,2]
[338032989,1726246232246,-8611.97964083,0.00013,2]
[338032990,1726246232262,-486.61826601,0.00013,2]
[338032991,1726246235576,500.0,0.00011164,2]
[338032992,1726246237866,-280.695,0.000129,2]
[338032993,1726246237976,-130.72161764,0.000129,2]
[338032994,1726246237988,-864.0,0.00013,2]
[338032995,1726246237998,-126.75874236,0.00013,2]
[338032998,1726246239750,-2951.7197915,0.00013,2]
[338032999,1726246239762,-5615.0,0.00013,2]
[338033000,1726246239871,1000.0,0.00012542,2]
[338033001,1726246239883,-453.8784,0.00013,2]
[338033002,1726246240024,-887.80368,0.00013,2]
[338033276,1726246242813,-575.47544634,0.00013,2]
[338033277,1726246242871,-436.78634993,0.00013,2]
[338033280,1726246242925,-281.326473,0.00013,2]
[338033283,1726246242937,-499.673527,0.00013,2]
[338033285,1726246242947,-95916.9640856,0.00013,2]
[338033287,1726246242958,-52966.17945955,0.00013,2]
[338033289,1726246242970,-289.82332462,0.00013,2]
[338033291,1726246242982,-313.60578957,0.00013,2]
[338033293,1726246242993,-276017.79436085,0.00013,2]
[338033357,1726246243614,-381.06598805,0.00013,2]
[338033359,1726246243625,-405.466,0.00013,2]
[338033361,1726246243637,-600.64996105,0.00013,2]
[338033363,1726246243651,-460.32635449,0.00013,2]
[338033366,1726246243665,-1454744.28568602,0.00013,2]
[338033368,1726246243676,-5380.291501,0.00013,2]
[338033370,1726246243688,-7979.52814858,0.00013,2]
[338033372,1726246243698,-3695.10176852,0.00013,2]
[338033374,1726246243709,-1017.6830018,0.00013,2]
[338033376,1726246243723,-694.74624943,0.00013,2]
[338033378,1726246243734,-446.51173508,0.00013,2]
[338033601,1726246245883,-269.24,0.00012973,2]
[338033603,1726246245894,-230.76,0.00012973,2]
[338033605,1726246245904,-306.12443375,0.00013,2]
[338033608,1726246245915,-80000.0,0.00013,2]
[338033615,1726246245981,-56033.59999999,0.00013,2]
[338033627,1726246246090,-833249.52052817,0.00013,2]
[338033630,1726246246101,-5750.01635685,0.00013,2]
[338033636,1726246246148,-1079.29185117,0.00013,2]
[338033638,1726246246159,-4004.75103814,0.00013,2]
[338034025,1726246253173,3284.88,0.00012549,2]
[338034027,1726246336108,500.0,0.00011164,2]
[338034028,1726246336702,500.0,0.00011164,2]
[338034029,1726246363349,169.68,0.00012274,2]
[338034030,1726246396932,250.0,0.00012227,2]
[338034031,1726246432489,1113.38,0.00012212,2]
[338034032,1726246435138,500.0,0.00011164,2]
[338034033,1726246435982,500.0,0.00011164,2]
[338034034,1726246451358,1501.66035369,0.000123,2]
[338034035,1726246472958,1663.35,0.00012183,2]
[338034036,1726246511000,803.47,0.00012158,2]
[338034037,1726246535109,794.32,0.00010218,2]
[338034038,1726246535381,794.32,0.00012482,2]
[338034039,1726246567045,175.11,0.00010959,2]
[338034040,1726246591691,314.33,0.00012128,2]
[338034041,1726246642059,20170.47560085,0.00012103,2]
[338034042,1726246642086,3729.52439915,0.00012103,2]
[338034043,1726246684834,153.93,0.00012085,2]
[338034044,1726246718403,250.0,0.00012085,2]
[338034045,1726246721492,250.0,0.00012085,2]
[338034046,1726246749944,200.0,0.00012085,2]
[338034047,1726246801851,500.0,0.00011164,2]
[338034048,1726246803542,163.38,0.00012636,2]
[338034049,1726246856746,198.06,0.00012067,2]
[338034050,1726246895092,379.10659289,0.00012629,2]
[338034051,1726246952748,178.79,0.00012615,2]
[338034052,1726246960709,250.0,0.00012086,2]
[338034053,1726246972132,1062.03,0.00012079,2]
[338034054,1726247082789,332.33,0.00012065,2]
[338034055,1726247114124,150.0,0.00011688,2]
[338034056,1726247134194,823.88,0.00010147,2]
[338034057,1726247134250,823.88,0.00012411,2]
[338034058,1726247199034,410.39,0.00012176,2]
[338034059,1726247233266,250.0,0.00012079,2]
[338034060,1726247305094,151.95,0.00010959,2]
[338034067,1726247348672,840.0,0.00012086,2]
[338034073,1726247434886,-300.0,0.00012645,2]
[338034074,1726247434896,-500.0,0.00012646,2]
[338034075,1726247434905,-493.8,0.00012646,2]
[338034076,1726247435001,-6.2,0.00012646,2]
[338034077,1726247435013,-500.0,0.00012646,2]
[338034078,1726247435023,-500.0,0.00012646,2]
[338034079,1726247435032,-500.0,0.00012646,2]
[338034080,1726247435042,-500.0,0.00012646,2]
[338034081,1726247435053,-500.0,0.00012646,2]
[338034082,1726247435062,-423.18596429,0.00012646,2]
[338034083,1726247435072,-4871.69760855,0.00012646,2]
[338034084,1726247435082,-383.47604074,0.00012678,2]
[338034085,1726247435092,-167.0,0.00012707,2]
[338034086,1726247435101,-379.10659289,0.00012711,2]
[338034087,1726247435111,-861.8643932,0.0001279,2]
[338034089,1726247435120,-875.857,0.00012799,2]
[338034091,1726247435129,-218.416,0.00012799,2]
[338034092,1726247435138,-150.0,0.00012799,2]
[338034093,1726247435147,-787.6077,0.000128,2]
[338034094,1726247435157,-14133.0822,0.000128,2]
[338034095,1726247435166,-727.9384,0.000128,2]
[338034096,1726247435175,-2155.8422,0.000128,2]
[338034097,1726247435184,-1580.5893,0.000128,2]
[338034098,1726247435193,-2062.6928,0.000128,2]
[338034099,1726247435202,-5367.3529,0.000128,2]
[338034100,1726247435211,-282.3496,0.000128,2]
[338034101,1726247435221,-2535.5939,0.000128,2]
[338034102,1726247435230,-252.1806,0.000128,2]
[338034103,1726247435239,-1924.6496,0.000128,2]
[338034104,1726247435248,-2500.0,0.000128,2]
[338034105,1726247435257,-176.92505,0.0001287,2]
[338034106,1726247435266,-1115.58,0.00012873,2]
[338034107,1726247435275,-999.99,0.00012873,2]
[338034108,1726247435283,-5178.5,0.00012873,2]
[338034109,1726247435293,-8203.93,0.000129,2]
[338034110,1726247435302,-499.99,0.000129,2]
[338034111,1726247435311,-375.611,0.000129,2]
[338034112,1726247435320,-388.79,0.000129,2]
[338034113,1726247435329,-185043.5078,0.000129,2]
[338034114,1726247435338,-1064.76036708,0.000129,2]
[338034115,1726247435346,-355.34774474,0.000129,2]
[338034116,1726247435356,-796.0,0.00012903,2]
[338034117,1726247435366,-1000.0,0.00012935,2]
[338034118,1726247435375,-1000.0,0.00012935,2]
[338034119,1726247435384,-1000.0,0.00012935,2]
[338034120,1726247435393,-1000.0,0.00012935,2]
[338034121,1726247435402,-1000.0,0.00012935,2]
[338034122,1726247435411,-1000.0,0.00012935,2]
[338034123,1726247435419,-1000.0,0.00012935,2]
[338034124,1726247435428,-1000.0,0.00012935,2]
[338034125,1726247435437,-1000.0,0.00012935,2]
[338034126,1726247435446,-562.0864,0.00012935,2]
[338034127,1726247435455,-844.901702,0.00012962,2]
[338034128,1726247435464,-844.901702,0.00012962,2]
[338034129,1726247435472,-422.450851,0.00012962,2]
[338034130,1726247435482,-500.0,0.00012973,2]
[338034131,1726247435491,-332.59289681,0.00012973,2]
[338034132,1726247435500,-500.0,0.00012973,2]
[338034133,1726247435509,-150.81,0.0001299,2]
[338034134,1726247435518,-500.0,0.00012999,2]
[338034135,1726247435527,-500.0,0.00012999,2]
[338034136,1726247435536,-500.0,0.00012999,2]
[338034137,1726247435545,-337.93666665,0.00012999,2]
[338034138,1726247435554,-1110.28091693,0.00012999,3]
[338034139,1726247435562,-800.0,0.00013,2]
[338034140,1726247435571,-208355.9708021,0.00013,2]
[338034141,1726247435580,-410545.85015037,0.00013,2]
[338034142,1726247435590,-1623.61032108,0.00013,2]
[338034143,1726247435599,-836216.08303809,0.00013,2]
[338034166,1726247438512,-815.90307262,0.00013,2]
[338034322,1726247440266,-480.46249548,0.000129,2]
[338034324,1726247440284,-111.61455756,0.000129,2]
[338034326,1726247440293,-225.21629387,0.00013,2]
[338034329,1726247440305,-442.78370613,0.00013,2]
[338034331,1726247440314,-723.0398232,0.00013,2]
[338034609,1726247443035,-1337.72872409,0.00013,2]
[338034682,1726247443903,-30000.0,0.00013,2]
[338034758,1726247444647,-610.0,0.00013,2]
[338034762,1726247444670,-29390.0,0.00013,2]
[338034838,1726247445411,-30000.0,0.00013,2]
[338034904,1726247445916,-30000.0,0.00013,2]
[338034948,1726247446323,-30000.0,0.00013,2]
[338034967,1726247446672,-500.0,0.00012973,2]
[338034970,1726247446694,-29500.0,0.00013,2]
[338035002,1726247447012,-30000.0,0.00013,2]
[338035051,1726247447482,-30000.0,0.00013,2]
[338035178,1726247448731,-30000.0,0.00013,2]
[338035213,1726247449065,-30000.0,0.00013,2]
[338035266,1726247449671,-30000.0,0.00013,2]
[338035342,1726247450414,-544.0,0.00013,2]
[338035346,1726247450437,-29456.0,0.00013,2]
[338035408,1726247451037,-30000.0,0.00013,2]
[338035468,1726247451626,-30000.0,0.00013,2]
[338035526,1726247452311,-30000.0,0.00013,2]
[338035588,1726247452896,-30000.0,0.00013,2]
[338036466,1726247462899,-300.0,0.00012999,2]
[338036468,1726247462921,-26942.0,0.00013,2]
[338036520,1726247491099,250.0,0.0001258,2]
[338036521,1726247549180,450.2,0.00012598,2]
[338036522,1726247567800,182.0,0.00012485,2]
[338036524,1726247654108,1212.92,0.00012426,2]
[338036525,1726247669897,198.06,0.0001245,2]
[338036526,1726247719333,250.0,0.0001241,2]
[338036527,1726247740239,500.0,0.00011164,2]
[338036528,1726247775130,250.0,0.0001241,2]
[338036529,1726247837370,761.53,0.0001049,2]
[338036530,1726247849809,328.0,0.00012201,2]
[338036531,1726247952412,1050.0,0.00011,2]
[338036532,1726247994756,250.0,0.00012204,2]
[338036533,1726248002995,153.52,0.00010959,2]
[338036534,1726248052430,169.68,0.00012164,2]
[338036535,1726248066153,156.85,0.00012164,2]
[338036536,1726248193174,198.06,0.00012238,2]
[338036537,1726248331531,250.0,0.0001221,2]
[338036538,1726248343699,737.6,0.00012187,2]
[338036539,1726248421622,27374.16989597,0.0001228,2]
[338036540,1726248438000,762.6,0.00010272,2]
[338036541,1726248438231,762.6,0.00012536,2]
[338036542,1726248450607,167.0,0.00012576,2]
[338036543,1726248490589,214.64,0.00010959,2]
[338036546,1726248507293,250.0,0.00012226,2]
[338036551,1726248590206,1000.0,0.000126,2]
[338036555,1726248615433,156.79,0.00012184,2]
[338036565,1726248632113,-431.47030983,0.000127,2]
[338036566,1726248632369,-0.68333445,0.000127,2]
[338036567,1726248632381,-718.84635572,0.000127,2]
[338036568,1726248632584,-167.0,0.00012792,2]
[338036569,1726248632593,-1781.92979,0.0001287,2]
[338036570,1726248632603,-300.0,0.00012879,2]
[338036571,1726248632612,-2794.10067808,0.0001288,2]
[338036575,1726248638246,-336.86532243,0.0001288,2]
[338036576,1726248638258,-576.25,0.0001288,2]
[338036577,1726248638363,-15387.79383528,0.0001288,2]
[338036578,1726248638375,-4925.0,0.00012899,2]
[338036579,1726248638385,-150.0,0.00012899,2]
[338036580,1726248638394,-2698.62504945,0.000129,2]
[338036754,1726248640127,-554.49843573,0.000129,2]
[338036756,1726248640139,-724.74667773,0.000129,2]
[338036774,1726248640297,-1140.4440054,0.000129,2]
[338037144,1726248643812,-274.23999998,0.000129,2]
[338037147,1726248643824,-323.955,0.000129,2]
[338037360,1726248646190,-3601.92321031,0.000129,2]
[338037362,1726248646199,-355.34774474,0.000129,2]
[338037364,1726248646208,-709.84024472,0.000129,2]
[338037366,1726248646217,-956.600298,0.00012962,2]
[338037367,1726248646226,-154.36238,0.00012962,2]
[338037369,1726248646235,-152.714662,0.00012962,2]
[338037371,1726248646244,-500.0,0.00012973,2]
[338037373,1726248646253,-185.1291855,0.00012973,2]
[338037375,1726248646262,-700.685,0.00012973,2]
[338037377,1726248646271,-174.732,0.00012973,2]
[338037378,1726248646280,-499.99,0.00012973,2]
[338037379,1726248646289,-426.49541603,0.00012999,3]
[338037381,1726248646298,-14588.40926522,0.00012999,2]
[338037383,1726248646307,-129177.98540104,0.00013,2]
[338037385,1726248646316,-129632.06738149,0.00013,2]
[338037387,1726248646327,-370.02686344,0.00013,2]
[338037391,1726248646365,-3352.57928644,0.00013,2]
[338037901,1726248651576,200.249,0.0001264,2]
[338038681,1726248661014,517.32,0.00012464,2]
[338038682,1726248677669,217.21,0.00012451,2]
[338038683,1726248708457,239.13,0.00012238,2]
[338038684,1726248708603,23900.0,0.00012453,2]
[338038685,1726248764284,667.47,0.00012453,2]
[338038686,1726248846353,409.92,0.00012428,2]
[338038687,1726248886785,250.0,0.00012453,2]
[338038688,1726248919710,250.0,0.00012455,2]
[338038689,1726249007914,727.16,0.00010467,2]
[338038690,1726249038849,160.66,0.00012182,2]
[338038691,1726249039108,160.66,0.00012185,2]
[338038692,1726249039467,160.66,0.00012189,2]
[338038693,1726249039681,160.66,0.00012192,2]
[338038694,1726249039947,160.66,0.00012195,2]
[338038695,1726249041928,160.66,0.00012198,2]
[338038696,1726249042154,160.66,0.00012201,2]
[338038697,1726249042452,160.66,0.00012205,2]
[338038698,1726249042703,160.66,0.00012208,2]
[338038699,1726249042935,160.66,0.00012211,2]
[338038700,1726249043155,160.66,0.00012214,2]
[338038701,1726249043365,160.66,0.00012217,2]
[338038702,1726249043568,160.66,0.00012221,2]
[338038703,1726249043816,160.66,0.00012224,2]
[338038704,1726249044025,160.66,0.00012227,2]
[338038705,1726249044712,160.66,0.0001223,2]
[338038706,1726249044934,160.66,0.00012233,2]
[338038707,1726249045175,160.66,0.00012237,2]
[338038708,1726249045500,160.66,0.0001224,2]
[338038709,1726249045715,160.66,0.00012243,2]
[338038710,1726249090727,735.93308574,0.00012631,2]
[338038711,1726249195674,210.89,0.00012122,2]
[338038712,1726249211154,490.62205716,0.00012631,2]
[338038713,1726249331540,327.08137144,0.00012631,2]
[338038714,1726249409342,672.06,0.00012123,2]
[338038715,1726249414399,239.13,0.00012123,2]
[338038716,1726249448115,250.0,0.00012158,2]
[338038717,1726249451905,218.05424762,0.00012631,2]
[338038718,1726249523834,167.0,0.00012469,2]
[338038719,1726249528035,166.35,0.00010959,2]
[338038720,1726249535701,690.8,0.00010206,2]
[338038721,1726249535914,690.8,0.0001247,2]
[338038722,1726249730032,156.85,0.0001215,2]
[338038731,1726249759424,1050.0,0.00011,2]
[338038760,1726249832269,-167.0,0.00012711,2]
[338038761,1726249832279,-156.62,0.00012729,2]
[338038762,1726249832288,-1484.94149,0.0001287,2]
[338038763,1726249832298,-150.0,0.00012877,2]
[338038764,1726249832307,-883.03825573,0.00012896,2]
[338038766,1726249832319,-299.78144014,0.00012896,2]
[338038768,1726249832330,-446.45853724,0.00012896,2]
[338038770,1726249832341,-2811.95121655,0.00012896,2]
[338038772,1726249832352,-900.0,0.00012896,2]
[338038775,1726249832363,-766.71121484,0.00012896,2]
[338038777,1726249832374,-1800.0,0.00012896,2]
[338038778,1726249832389,-213.59413189,0.00012896,2]
[338038779,1726249832399,-150.0,0.00012899,2]
[338038780,1726249832409,-8663.42411811,0.000129,2]
[338038781,1726249832420,-77.81491144,0.000129,2]
[338038782,1726249832429,-324.63891237,0.000129,2]
[338038783,1726249832439,-355.34774474,0.000129,2]
[338038784,1726249832448,-197.57350504,0.000129,2]
[338038785,1726249832460,-369.0,0.000129,2]
[338038786,1726249832471,-1340.24249496,0.000129,2]
[338038787,1726249832480,-97.37946306,0.00012962,2]
[338038788,1726249832491,-86.84935994,0.00012962,2]
[338038789,1726249832500,-1199.86809312,0.00012973,2]
[338038790,1726249832517,-4148.68190688,0.00012973,2]
[338038791,1726249832526,-179.18953328,0.00012973,2]
[338038792,1726249832535,-500.0,0.00012973,2]
[338038793,1726249832544,-727.322,0.00012973,2]
[338038794,1726249832555,-188.343,0.00012973,2]
[338038795,1726249832564,-237.4765173,0.0001299,2]
[338038796,1726249832574,-151.51,0.0001299,2]
[338038797,1726249832583,-499.99,0.00012996,2]
[338038798,1726249832593,-298.96238148,0.00012996,2]
[338038800,1726249832604,-470.60202167,0.00012996,2]
[338038804,1726249832642,-3631.10754615,0.00012996,2]
[338038806,1726249832652,-370.22629958,0.00012996,2]
[338038808,1726249832661,-536.83810701,0.00012999,2]
[338038810,1726249832670,-243.86322988,0.00012999,2]
[338038812,1726249832682,-64588.99270052,0.00013,2]
[338038814,1726249832691,-273632.93912579,0.00013,2]
[338038817,1726249832702,-4676.11463371,0.00013,2]
[338038819,1726249832713,-445.10286169,0.00013,2]
[338038821,1726249832725,-2299.76847704,0.00013,2]
[338038823,1726249832736,-569.99999994,0.00013,2]
[338038825,1726249832748,-351.899999,0.00013,2]
[338038827,1726249832762,-2493.04984094,0.00013,2]
[338038828,1726249832773,-424845.5875141,0.00013,2]
[338038829,1726249832784,-607.52898324,0.00013,2]
[338038830,1726249832795,-481.470523,0.00013,2]
[338038840,1726249838265,-1470.99385786,0.00012668,2]
[338038841,1726249838276,-999.83499872,0.00012668,2]
[338038842,1726249838287,-7529.17114342,0.00012668,2]
[338038843,1726249838296,-455.4335,0.000129,2]
[338038844,1726249838305,-5945.13749856,0.00013,2]
[338038845,1726249838316,-472.72532831,0.00013,2]
[338038846,1726249838327,-544.38170658,0.00013,2]
[338038847,1726249838380,-2895.5,0.00013,2]
[338038848,1726249838390,-4943.76503526,0.00013,2]
[338038849,1726249838402,-1738.93951158,0.00013,2]
[338038850,1726249838413,-18929.35859594,0.00013,2]
[338038851,1726249838424,-16183.61727271,0.00013,2]
[338038852,1726249838435,-250.0548943,0.00013,2]
[338038853,1726249838450,-1840.08345201,0.00013,2]
[338038854,1726249838473,-4981.79999993,0.00013,2]
[338038855,1726249838483,-1111.14398307,0.00013,2]
[338038856,1726249838494,-4678.43151661,0.00013,2]
[338038857,1726249838505,-2383.05429346,0.00013,2]
[338038858,1726249838517,-577.87520853,0.00013,2]
[338038859,1726249838583,-29166.63838452,0.00013,2]
[338038860,1726249838594,-1014.6173005,0.00013,2]
[338039010,1726249840229,-500.0,0.00012999,2]
[338039012,1726249840238,-450.90019971,0.00012999,2]
[338039014,1726249840250,-49.09980029,0.00012999,2]
[338039016,1726249840259,-298.48068051,0.00013,2]
[338039018,1726249840270,-4438.38278603,0.00013,2]
[338039020,1726249840281,-485.23260399,0.00013,2]
[338039022,1726249840292,-482.45792359,0.00013,2]
[338039025,1726249840309,-425.0,0.00012999,2]
[338039027,1726249840320,-75.0,0.00012999,2]
[338039029,1726249840329,-225.0,0.00013,2]
[338039033,1726249840354,-382.22230133,0.00012999,2]
[338039035,1726249840364,-283.49237823,0.00012999,2]
[338039037,1726249840376,-216.50762177,0.00012999,2]
[338039039,1726249840385,-354.50085692,0.00012999,2]
[338039041,1726249840394,-298.58806477,0.00013,2]
[338039044,1726249840420,-500.0,0.00012999,2]
[338039066,1726249840619,-500.0,0.00012999,2]
[338039068,1726249840631,-500.0,0.00012999,2]
[338039070,1726249840641,-23424.90000006,0.00013,2]
[338039072,1726249840656,-704.74178858,0.00013,2]
[338039075,1726249840668,-440.96864,0.00013,2]
[338039082,1726249840736,-500.0,0.00012999,2]
[338039084,1726249840746,-500.0,0.00012999,2]
[338039086,1726249840756,-500.0,0.00012999,2]
[338039088,1726249840765,-436.20307847,0.00012999,2]
[338039090,1726249840774,-500.0,0.00012999,2]
[338039092,1726249840784,-500.0,0.00012999,2]
[338039094,1726249840793,-227.12938384,0.00012999,2]
[338039096,1726249840803,-500.0,0.00012999,2]
[338039098,1726249840812,-500.0,0.00012999,2]
[338039099,1726249840822,-1984.22014689,0.00013,2]
[338039102,1726249840835,-284.35257,0.00013,2]
[338039104,1726249840846,-594.39655094,0.00013,2]
[338039106,1726249840857,-22194.97216554,0.00013,2]
[338039108,1726249840869,-376.60294689,0.00013,2]
[338039110,1726249840881,-501.04428,0.00013,2]
[338039112,1726249840892,-1765.19999999,0.00013,2]
[338039117,1726249840926,-1500.0,0.00012903,2]
[338039118,1726249840935,-500.0,0.00012999,2]
[338039120,1726249840944,-194.36567109,0.00012999,2]
[338039122,1726249840955,-305.63432891,0.00012999,2]
[338039124,1726249840965,-500.0,0.00012999,2]
[338039126,1726249840975,-500.0,0.00012999,2]
[338039128,1726249840984,-140061.04171992,0.00013,2]
[338039370,1726249843303,-150.0,0.00012801,2]
[338039373,1726249843313,-150.0,0.00012883,2]
[338039375,1726249843323,-379.93341066,0.00012893,2]
[338039387,1726249843379,-1120.06658934,0.00012893,2]
[338039391,1726249843389,-150.0,0.00012904,2]
[338039394,1726249843398,-150.0,0.0001291,2]
[338039396,1726249843408,-150.0,0.00012948,2]
[338039398,1726249843418,-150.0,0.00012965,2]
[338039400,1726249843427,-150.0,0.00012967,2]
[338039402,1726249843440,-150.0,0.00012971,2]
[338039404,1726249843450,-483.71818506,0.00012999,2]
[338039461,1726249843977,-16.28181494,0.00012999,2]
[338039463,1726249843986,-345.55104747,0.00012999,2]
[338039465,1726249843995,-500.0,0.00012999,2]
[338039467,1726249844005,-500.0,0.00012999,2]
[338039469,1726249844015,-500.0,0.00012999,2]
[338039471,1726249844024,-500.0,0.00012999,2]
[338039473,1726249844033,-500.0,0.00012999,2]
[338039474,1726249844042,-500.0,0.00012999,2]
[338039476,1726249844051,-500.0,0.00012999,2]
[338039478,1726249844061,-500.0,0.00012999,2]
[338039480,1726249844070,-500.0,0.00012999,2]
[338039482,1726249844079,-500.0,0.00012999,2]
[338039484,1726249844089,-10480.8373742,0.00013,2]
[338039708,1726249846338,-951234.59608019,0.00013,2]
[338039718,1726249846416,-1143.278,0.00013,2]
[338039729,1726249846503,-1502.17500476,0.00013,2]
[338039731,1726249846514,-1239.39081096,0.00013,2]
[338039733,1726249846525,-537.2269,0.00013,2]
[338039735,1726249846535,-5686.35000001,0.00013,2]
[338039737,1726249846546,-3001.3,0.00013,2]
[338039739,1726249846558,-6014.008,0.00013,2]
[338039750,1726249846654,-386.54870469,0.00013,2]
[338039752,1726249846665,-5302.50154955,0.00013,2]
[338039754,1726249846676,-6013.39449121,0.00013,2]
[338040941,1726249860236,755.66,0.00012492,2]
[338041571,1726249894153,23900.0,0.00012413,2]
[338041572,1726249912045,462.35,0.00012169,2]
[338041573,1726249925296,2000.0,0.00012164,2]
[338041574,1726249964696,436.10849522,0.000126,2]
[338041575,1726249968303,250.0,0.0001218,2]
[338041576,1726249978227,1331.9516288,0.0001,2]
[338041577,1726249988079,329.27,0.00012431,2]
[338041578,1726250019323,250.0,0.00012151,2]
[338041579,1726250053638,151.95,0.00010959,2]
[338041580,1726250073051,243.1050947,0.00012638,2]
[338041581,1726250085664,167.0,0.00012498,2]
[338041582,1726250094206,342.7,0.00012109,2]